[Event "Titled Tuesday Blitz May 23 Late 2023"]
[White "Dudzinski, Pawel"]
[Black "Filgueira, Hernan"]
[WhiteFideId "1117890"]
[BlackFideId "101770"]
[WhiteElo "2099"]
[BlackElo "2363"]
[Result "0-1"]
[Round "10"]
[TimeControl "180+2"]
[Date "2023.05.23"]
[WhiteClock "0:00:02"]
[BlackClock "0:00:30"]

1. e4 {[%clk 0:03:00]}  d5 {[%clk 0:02:58]} 2. Nc3 {[%clk 0:02:57]}  dxe4 {[%clk 0:02:58]} 3. Nxe4 {[%clk 0:02:58]}  Qd5 {[%clk 0:02:55]} 4. Qf3 {[%clk 0:02:45]}  Nc6 {[%clk 0:02:49]} 5. c3 {[%clk 0:02:41]}  Bf5 {[%clk 0:02:34]} 6. Ng3 {[%clk 0:02:40]}  Qe6+ {[%clk 0:02:28]} 7. Qe3 {[%clk 0:02:32]}  Qxe3+ {[%clk 0:02:26]} 8. dxe3 {[%clk 0:02:26]}  Bd7 {[%clk 0:02:23]} 9. e4 {[%clk 0:02:25]}  O-O-O {[%clk 0:02:18]} 10. Be3 {[%clk 0:02:23]}  Nf6 {[%clk 0:02:15]} 11. f3 {[%clk 0:02:23]}  e5 {[%clk 0:02:13]} 12. Bc4 {[%clk 0:02:22]}  Be8 {[%clk 0:02:09]} 13. N1e2 {[%clk 0:02:15]}  Na5 {[%clk 0:02:04]} 14. Bb3 {[%clk 0:02:13]}  Nxb3 {[%clk 0:02:05]} 15. axb3 {[%clk 0:02:14]}  a6 {[%clk 0:02:05]} 16. Kf2 {[%clk 0:02:12]}  Bd7 {[%clk 0:01:56]} 17. Rhd1 {[%clk 0:02:09]}  Be7 {[%clk 0:01:55]} 18. Nf5 {[%clk 0:02:05]}  Bxf5 {[%clk 0:01:52]} 19. exf5 {[%clk 0:02:06]}  Nd5 {[%clk 0:01:51]} 20. Ng3 {[%clk 0:01:20]}  Bh4 {[%clk 0:01:45]} 21. Ke2 {[%clk 0:01:18]}  g6 {[%clk 0:01:37]} 22. fxg6 {[%clk 0:01:12]}  hxg6 {[%clk 0:01:36]} 23. Ne4 {[%clk 0:01:10]}  f5 {[%clk 0:01:33]} 24. Nc5 {[%clk 0:00:37]}  Nxe3 {[%clk 0:01:05]} 25. Kxe3 {[%clk 0:00:31]}  Bg5+ {[%clk 0:01:03]} 26. Ke2 {[%clk 0:00:20]}  Rxh2 {[%clk 0:00:57]} 27. Ne6 {[%clk 0:00:16]}  Rxd1 {[%clk 0:00:55]} 28. Rxd1 {[%clk 0:00:15]}  Be7 {[%clk 0:00:55]} 29. Kf2 {[%clk 0:00:10]}  Bd6 {[%clk 0:00:53]} 30. Kg3 {[%clk 0:00:09]}  Rh5 {[%clk 0:00:50]} 31. f4 {[%clk 0:00:06]}  exf4+ {[%clk 0:00:49]} 32. Kf3 {[%clk 0:00:06]}  g5 {[%clk 0:00:48]} 33. Ng7 {[%clk 0:00:03]}  g4+ {[%clk 0:00:48]} 34. Kf2 {[%clk 0:00:03]}  Rg5 {[%clk 0:00:45]} 35. Ne8 {[%clk 0:00:01]}  Rg6 {[%clk 0:00:43]} 36. Nxd6+ {[%clk 0:00:01]}  Rxd6 {[%clk 0:00:43]} 37. Rh1 {[%clk 0:00:02]}  Rd2+ {[%clk 0:00:42]} 38. Ke1 {[%clk 0:00:03]}  Rxb2 {[%clk 0:00:41]} 39. Rh8+ {[%clk 0:00:03]}  Kd7 {[%clk 0:00:41]} 40. Rh7+ {[%clk 0:00:04]}  Ke6 {[%clk 0:00:39]} 41. Rxc7 {[%clk 0:00:03]}  Rxb3 {[%clk 0:00:39]} 42. Kd2 {[%clk 0:00:01]}  a5 {[%clk 0:00:33]} 43. Kd3 {[%clk 0:00:02]}  a4 {[%clk 0:00:33]} 44. Kc4 {[%clk 0:00:02]}  Rb2 {[%clk 0:00:33]} 45. Rc8 {[%clk 0:00:03]}  a3 {[%clk 0:00:32]} 46. Re8+ {[%clk 0:00:03]}  Kf7 {[%clk 0:00:32]} 47. Ra8 {[%clk 0:00:03]}  a2 {[%clk 0:00:31]} 48. Ra7 {[%clk 0:00:03]}  f3 {[%clk 0:00:31]} 49. Rxa2 {[%clk 0:00:02]}  Rxa2 {[%clk 0:00:30]} 0-1


[Site "https://www.chess.com"]

[Event "Titled Tuesday Blitz May 23 Late 2023"]
[White "Tomiello, Mateus Costamilan"]
[Black "Zaitsev, Alexander"]
[WhiteFideId "22701958"]
[BlackFideId "4164490"]
[WhiteElo "1990"]
[BlackElo "2373"]
[Result "0-1"]
[Round "10"]
[TimeControl "180+2"]
[Date "2023.05.23"]
[WhiteClock "0:01:03"]
[BlackClock "0:00:16"]

1. e4 {[%clk 0:03:00]}  c5 {[%clk 0:03:00]} 2. Nf3 {[%clk 0:03:00]}  Nc6 {[%clk 0:03:00]} 3. d4 {[%clk 0:03:00]}  cxd4 {[%clk 0:03:01]} 4. Nxd4 {[%clk 0:03:01]}  g6 {[%clk 0:03:02]} 5. c4 {[%clk 0:02:57]}  Bg7 {[%clk 0:03:00]} 6. Be3 {[%clk 0:02:57]}  Qb6 {[%clk 0:03:00]} 7. Nb3 {[%clk 0:02:54]}  Qd8 {[%clk 0:02:53]} 8. Qd2 {[%clk 0:02:50]}  Nf6 {[%clk 0:02:51]} 9. Nc3 {[%clk 0:02:50]}  Ng4 {[%clk 0:02:47]} 10. Bg5 {[%clk 0:02:48]}  h6 {[%clk 0:02:46]} 11. Bh4 {[%clk 0:02:48]}  d6 {[%clk 0:02:30]} 12. h3 {[%clk 0:02:45]}  Nf6 {[%clk 0:02:26]} 13. Be2 {[%clk 0:02:44]}  a5 {[%clk 0:02:22]} 14. O-O {[%clk 0:02:42]}  a4 {[%clk 0:02:16]} 15. Nc1 {[%clk 0:02:38]}  a3 {[%clk 0:02:07]} 16. Rb1 {[%clk 0:02:30]}  axb2 {[%clk 0:01:42]} 17. Rxb2 {[%clk 0:02:31]}  O-O {[%clk 0:01:30]} 18. Rb1 {[%clk 0:02:18]}  Na5 {[%clk 0:01:17]} 19. Nb3 {[%clk 0:02:15]}  Be6 {[%clk 0:01:12]} 20. Nxa5 {[%clk 0:02:07]}  Qxa5 {[%clk 0:01:13]} 21. Rxb7 {[%clk 0:02:05]}  Rfc8 {[%clk 0:00:56]} 22. Rd1 {[%clk 0:01:17]}  Bxc4 {[%clk 0:00:50]} 23. Bxc4 {[%clk 0:01:16]}  Rxc4 {[%clk 0:00:51]} 24. Nd5 {[%clk 0:01:17]}  Nxd5 {[%clk 0:00:44]} 25. exd5 {[%clk 0:01:10]}  Qxd2 {[%clk 0:00:40]} 26. Rxd2 {[%clk 0:01:09]}  Rxh4 {[%clk 0:00:41]} 27. Rxe7 {[%clk 0:01:09]}  Rha4 {[%clk 0:00:37]} 28. Rd7 {[%clk 0:01:09]}  Be5 {[%clk 0:00:37]} 29. g3 {[%clk 0:01:09]}  g5 {[%clk 0:00:37]} 30. Rd3 {[%clk 0:01:05]}  Ra3 {[%clk 0:00:33]} 31. Rd2 {[%clk 0:01:04]}  Rxa2 {[%clk 0:00:34]} 32. Rd3 {[%clk 0:01:05]}  R8a3 {[%clk 0:00:33]} 33. Rd8+ {[%clk 0:01:05]}  Kg7 {[%clk 0:00:33]} 34. Rd1 {[%clk 0:01:05]}  Ra1 {[%clk 0:00:33]} 35. Rxa1 {[%clk 0:01:05]}  Rxa1+ {[%clk 0:00:34]} 36. Kg2 {[%clk 0:01:06]}  Rd1 {[%clk 0:00:35]} 37. Re8 {[%clk 0:01:06]}  Rxd5 {[%clk 0:00:35]} 38. Ra8 {[%clk 0:01:05]}  Rd2 {[%clk 0:00:35]} 39. Ra4 {[%clk 0:01:06]}  Bd4 {[%clk 0:00:34]} 40. Kf3 {[%clk 0:01:06]}  d5 {[%clk 0:00:33]} 41. Ra5 {[%clk 0:01:06]}  Bxf2 {[%clk 0:00:33]} 42. Ra3 {[%clk 0:01:05]}  d4 {[%clk 0:00:31]} 43. Rb3 {[%clk 0:01:06]}  Be3 {[%clk 0:00:31]} 44. Ke4 {[%clk 0:01:06]}  Rh2 {[%clk 0:00:28]} 45. g4 {[%clk 0:01:04]}  Rxh3 {[%clk 0:00:28]} 46. Kf5 {[%clk 0:01:05]}  Rf3+ {[%clk 0:00:27]} 47. Ke4 {[%clk 0:01:05]}  Rf4+ {[%clk 0:00:28]} 48. Ke5 {[%clk 0:01:06]}  Rxg4 {[%clk 0:00:29]} 49. Rd3 {[%clk 0:01:06]}  Rf4 {[%clk 0:00:29]} 50. Rb3 {[%clk 0:01:06]}  h5 {[%clk 0:00:29]} 51. Rb1 {[%clk 0:01:06]}  h4 {[%clk 0:00:29]} 52. Rh1 {[%clk 0:01:07]}  Kg6 {[%clk 0:00:29]} 53. Rh3 {[%clk 0:01:07]}  f6+ {[%clk 0:00:25]} 54. Ke6 {[%clk 0:01:07]}  Kh5 {[%clk 0:00:23]} 55. Rh2 {[%clk 0:01:07]}  g4 {[%clk 0:00:23]} 56. Rh1 {[%clk 0:01:07]}  h3 {[%clk 0:00:23]} 57. Kd5 {[%clk 0:01:07]}  Kh4 {[%clk 0:00:23]} 58. Re1 {[%clk 0:01:06]}  h2 {[%clk 0:00:23]} 59. Ke6 {[%clk 0:01:06]}  Bg1 {[%clk 0:00:22]} 60. Re4 {[%clk 0:01:02]}  Rxe4+ {[%clk 0:00:21]} 61. Kf5 {[%clk 0:01:02]}  h1=Q {[%clk 0:00:19]} 62. Kg6 {[%clk 0:01:02]}  Qf3 {[%clk 0:00:18]} 63. Kg7 {[%clk 0:01:02]}  Qf5 {[%clk 0:00:17]} 64. Kf7 {[%clk 0:01:02]}  Qh7+ {[%clk 0:00:15]} 65. Kf8 {[%clk 0:01:02]}  Qe7+ {[%clk 0:00:14]} 66. Kg8 {[%clk 0:01:03]}  Qd7 {[%clk 0:00:15]} 67. Kh8 {[%clk 0:01:03]}  Re8# {[%clk 0:00:16]} 0-1


[Site "https://www.chess.com"]

[Event "Titled Tuesday Blitz May 23 Late 2023"]
[White "Eugene, Floryan"]
[Black "Vega Gutierrez, Sabrina"]
[WhiteFideId "20694784"]
[BlackFideId "2219026"]
[WhiteElo "2369"]
[BlackElo "2209"]
[Result "0-1"]
[Round "10"]
[TimeControl "180+2"]
[Date "2023.05.23"]
[WhiteClock "0:00:10"]
[BlackClock "0:00:04"]

1. d4 {[%clk 0:02:56]}  d5 {[%clk 0:02:59]} 2. c4 {[%clk 0:02:55]}  e6 {[%clk 0:03:00]} 3. Nc3 {[%clk 0:02:56]}  c6 {[%clk 0:02:59]} 4. Nf3 {[%clk 0:02:55]}  dxc4 {[%clk 0:02:58]} 5. a4 {[%clk 0:02:51]}  Bb4 {[%clk 0:02:59]} 6. e3 {[%clk 0:02:51]}  b5 {[%clk 0:02:59]} 7. Bd2 {[%clk 0:02:49]}  a5 {[%clk 0:03:00]} 8. axb5 {[%clk 0:02:48]}  Bxc3 {[%clk 0:03:01]} 9. Bxc3 {[%clk 0:02:49]}  cxb5 {[%clk 0:03:01]} 10. b3 {[%clk 0:02:49]}  Bb7 {[%clk 0:03:01]} 11. bxc4 {[%clk 0:02:49]}  b4 {[%clk 0:03:02]} 12. Bb2 {[%clk 0:02:50]}  Nf6 {[%clk 0:03:02]} 13. Bd3 {[%clk 0:02:50]}  O-O {[%clk 0:03:01]} 14. O-O {[%clk 0:02:51]}  Nbd7 {[%clk 0:02:58]} 15. Nd2 {[%clk 0:02:48]}  Qc7 {[%clk 0:02:51]} 16. e4 {[%clk 0:02:42]}  e5 {[%clk 0:02:32]} 17. f4 {[%clk 0:02:42]}  exd4 {[%clk 0:02:16]} 18. e5 {[%clk 0:02:42]}  Nc5 {[%clk 0:02:05]} 19. Bf5 {[%clk 0:02:38]}  Nfe4 {[%clk 0:01:47]} 20. Nxe4 {[%clk 0:02:38]}  Bxe4 {[%clk 0:01:46]} 21. Bxe4 {[%clk 0:02:37]}  Nxe4 {[%clk 0:01:46]} 22. Qxd4 {[%clk 0:02:38]}  Qc5 {[%clk 0:01:45]} 23. Rfe1 {[%clk 0:02:31]}  Qxd4+ {[%clk 0:01:42]} 24. Bxd4 {[%clk 0:02:32]}  Nd2 {[%clk 0:01:40]} 25. c5 {[%clk 0:01:59]}  Nb3 {[%clk 0:01:30]} 26. Rad1 {[%clk 0:01:58]}  Rfd8 {[%clk 0:01:20]} 27. Be3 {[%clk 0:01:56]}  Rdc8 {[%clk 0:00:50]} 28. Rd5 {[%clk 0:01:46]}  a4 {[%clk 0:00:49]} 29. Red1 {[%clk 0:01:45]}  a3 {[%clk 0:00:43]} 30. R5d3 {[%clk 0:01:39]}  a2 {[%clk 0:00:38]} 31. Rxb3 {[%clk 0:01:37]}  a1=Q {[%clk 0:00:38]} 32. Rxa1 {[%clk 0:01:38]}  Rxa1+ {[%clk 0:00:38]} 33. Kf2 {[%clk 0:01:38]}  Ra4 {[%clk 0:00:36]} 34. Kf3 {[%clk 0:01:35]}  Kf8 {[%clk 0:00:34]} 35. Ke4 {[%clk 0:01:34]}  Ke7 {[%clk 0:00:30]} 36. Kd5 {[%clk 0:01:34]}  Rd8+ {[%clk 0:00:23]} 37. Kc4 {[%clk 0:01:33]}  Kd7 {[%clk 0:00:20]} 38. Bd2 {[%clk 0:00:42]}  Kc6 {[%clk 0:00:20]} 39. Bxb4 {[%clk 0:00:42]}  Rb8 {[%clk 0:00:19]} 40. Rb2 {[%clk 0:00:41]}  h5 {[%clk 0:00:17]} 41. f5 {[%clk 0:00:41]}  Re8 {[%clk 0:00:15]} 42. Rd2 {[%clk 0:00:39]}  Rxe5 {[%clk 0:00:14]} 43. Rd6+ {[%clk 0:00:39]}  Kc7 {[%clk 0:00:15]} 44. Kb5 {[%clk 0:00:39]}  Ra2 {[%clk 0:00:10]} 45. Rc6+ {[%clk 0:00:34]}  Kd7 {[%clk 0:00:09]} 46. Rb6 {[%clk 0:00:34]}  Rxf5 {[%clk 0:00:07]} 47. Rb7+ {[%clk 0:00:34]}  Ke6 {[%clk 0:00:06]} 48. Kb6 {[%clk 0:00:28]}  Rb2 {[%clk 0:00:06]} 49. Kc6 {[%clk 0:00:23]}  Rf4 {[%clk 0:00:06]} 50. Be1 {[%clk 0:00:18]}  Rxb7 {[%clk 0:00:05]} 51. Kxb7 {[%clk 0:00:19]}  Re4 {[%clk 0:00:03]} 52. Bg3 {[%clk 0:00:19]}  Rc4 {[%clk 0:00:02]} 53. c6 {[%clk 0:00:19]}  h4 {[%clk 0:00:03]} 54. Bf2 {[%clk 0:00:13]}  Kd6 {[%clk 0:00:02]} 55. Bb6 {[%clk 0:00:10]}  Rxc6 {[%clk 0:00:02]} 56. Be3 {[%clk 0:00:10]}  Rc2 {[%clk 0:00:02]} 57. Bf4+ {[%clk 0:00:11]}  Ke6 {[%clk 0:00:02]} 58. g3 {[%clk 0:00:12]}  Kf5 {[%clk 0:00:02]} 59. Be5 {[%clk 0:00:10]}  h3 {[%clk 0:00:03]} 60. Bxg7 {[%clk 0:00:11]}  Kg4 {[%clk 0:00:03]} 61. Be5 {[%clk 0:00:10]}  Rxh2 {[%clk 0:00:04]} 62. Kc6 {[%clk 0:00:11]}  Re2 {[%clk 0:00:04]} 63. Kd6 {[%clk 0:00:12]}  h2 {[%clk 0:00:04]} 64. Bf4 {[%clk 0:00:12]}  h1=Q {[%clk 0:00:04]} 65. Kd7 {[%clk 0:00:10]}  Qd5+ {[%clk 0:00:04]} 0-1


[Site "https://www.chess.com"]

[Event "Titled Tuesday Blitz May 23 Late 2023"]
[White "Mickiewicz, Piotr"]
[Black "Szpar, Milosz"]
[WhiteFideId "1114891"]
[BlackFideId "1184989"]
[WhiteElo "2246"]
[BlackElo "2434"]
[Result "1-0"]
[Round "10"]
[TimeControl "180+2"]
[Date "2023.05.23"]
[WhiteClock "0:00:29"]
[BlackClock "0:01:42"]

1. e4 {[%clk 0:02:58]}  f5 {[%clk 0:02:55]} 2. exf5 {[%clk 0:02:57]}  Kf7 {[%clk 0:02:55]} 3. Nf3 {[%clk 0:02:42]}  Nf6 {[%clk 0:02:45]} 4. d4 {[%clk 0:02:34]}  d5 {[%clk 0:02:41]} 5. Bd3 {[%clk 0:02:32]}  c5 {[%clk 0:02:41]} 6. dxc5 {[%clk 0:02:29]}  g6 {[%clk 0:02:40]} 7. fxg6+ {[%clk 0:02:26]}  hxg6 {[%clk 0:02:41]} 8. Ne5+ {[%clk 0:02:19]}  Kg7 {[%clk 0:02:41]} 9. Nxg6 {[%clk 0:02:19]}  Rh5 {[%clk 0:02:37]} 10. Bf4 {[%clk 0:01:56]}  Bg4 {[%clk 0:02:34]} 11. f3 {[%clk 0:01:54]}  Bf5 {[%clk 0:02:34]} 12. Nxf8 {[%clk 0:01:40]}  Kxf8 {[%clk 0:02:35]} 13. g4 {[%clk 0:01:37]}  Bxd3 {[%clk 0:02:33]} 14. Qxd3 {[%clk 0:01:38]}  Rh3 {[%clk 0:02:29]} 15. g5 {[%clk 0:01:35]}  Ne4 {[%clk 0:02:25]} 16. Qf1 {[%clk 0:01:25]}  Nxg5 {[%clk 0:02:10]} 17. Bxg5 {[%clk 0:01:23]}  Qd7 {[%clk 0:02:10]} 18. Nd2 {[%clk 0:01:18]}  Nc6 {[%clk 0:02:10]} 19. O-O-O {[%clk 0:01:17]}  Kf7 {[%clk 0:02:09]} 20. f4 {[%clk 0:00:48]}  Rah8 {[%clk 0:02:09]} 21. Nf3 {[%clk 0:00:47]}  Ke8 {[%clk 0:02:08]} 22. Ne5 {[%clk 0:00:46]}  Qf5 {[%clk 0:02:08]} 23. Rxd5 {[%clk 0:00:40]}  Rxh2 {[%clk 0:02:05]} 24. Rxh2 {[%clk 0:00:36]}  Rxh2 {[%clk 0:02:06]} 25. Qd1 {[%clk 0:00:33]}  Qe4 {[%clk 0:02:02]} 26. Rd8+ {[%clk 0:00:28]}  Nxd8 {[%clk 0:02:00]} 27. Qd7+ {[%clk 0:00:29]}  Kf8 {[%clk 0:01:59]} 28. Qxd8+ {[%clk 0:00:28]}  Kg7 {[%clk 0:01:59]} 29. Qxe7+ {[%clk 0:00:29]}  Kg8 {[%clk 0:01:55]} 30. Qf7+ {[%clk 0:00:29]}  Kh8 {[%clk 0:01:42]} 31. Ng6+ {[%clk 0:00:29]} 1-0


[Site "https://www.chess.com"]

[Event "Titled Tuesday Blitz May 23 Late 2023"]
[White "Morefield, Jason"]
[Black "Gurevich, Dmitry"]
[WhiteFideId "30920825"]
[BlackFideId "2000407"]
[WhiteElo "2171"]
[BlackElo "2506"]
[Result "1-0"]
[Round "10"]
[TimeControl "180+2"]
[Date "2023.05.23"]
[WhiteClock "0:01:35"]
[BlackClock "0:00:22"]

1. e4 {[%clk 0:03:00]}  c5 {[%clk 0:02:58]} 2. Nf3 {[%clk 0:03:01]}  d6 {[%clk 0:02:58]} 3. d4 {[%clk 0:03:00]}  cxd4 {[%clk 0:02:58]} 4. Nxd4 {[%clk 0:03:01]}  Nf6 {[%clk 0:02:58]} 5. Nc3 {[%clk 0:03:01]}  Nc6 {[%clk 0:02:57]} 6. Bg5 {[%clk 0:03:00]}  g6 {[%clk 0:02:54]} 7. Bxf6 {[%clk 0:03:00]}  exf6 {[%clk 0:02:54]} 8. Bc4 {[%clk 0:02:58]}  Bg7 {[%clk 0:02:52]} 9. O-O {[%clk 0:02:58]}  Nxd4 {[%clk 0:02:50]} 10. Qxd4 {[%clk 0:02:58]}  O-O {[%clk 0:02:50]} 11. Qd3 {[%clk 0:02:57]}  f5 {[%clk 0:02:49]} 12. Rad1 {[%clk 0:02:52]}  fxe4 {[%clk 0:02:41]} 13. Nxe4 {[%clk 0:02:46]}  Bxb2 {[%clk 0:02:28]} 14. c3 {[%clk 0:02:41]}  Bf5 {[%clk 0:02:20]} 15. Rb1 {[%clk 0:02:37]}  Ba3 {[%clk 0:02:02]} 16. Rxb7 {[%clk 0:02:34]}  Rc8 {[%clk 0:01:57]} 17. Bd5 {[%clk 0:02:27]}  Bc5 {[%clk 0:01:45]} 18. Rfb1 {[%clk 0:02:19]}  Bxe4 {[%clk 0:01:39]} 19. Qxe4 {[%clk 0:02:17]}  Qf6 {[%clk 0:01:39]} 20. Qc2 {[%clk 0:02:08]}  Rce8 {[%clk 0:01:29]} 21. g3 {[%clk 0:02:05]}  Re7 {[%clk 0:01:23]} 22. Rxe7 {[%clk 0:02:03]}  Qxe7 {[%clk 0:01:22]} 23. Rb7 {[%clk 0:02:03]}  Qf6 {[%clk 0:01:20]} 24. c4 {[%clk 0:02:02]}  h5 {[%clk 0:01:19]} 25. h4 {[%clk 0:01:59]}  Kg7 {[%clk 0:01:14]} 26. Kg2 {[%clk 0:01:59]}  Kh6 {[%clk 0:01:09]} 27. Qd2+ {[%clk 0:01:56]}  Kg7 {[%clk 0:01:08]} 28. a4 {[%clk 0:01:55]}  Kh7 {[%clk 0:01:01]} 29. a5 {[%clk 0:01:53]}  Kg7 {[%clk 0:01:00]} 30. Qe2 {[%clk 0:01:44]}  Re8 {[%clk 0:00:43]} 31. Qxe8 {[%clk 0:01:36]}  Qxf2+ {[%clk 0:00:41]} 32. Kh3 {[%clk 0:01:36]}  Qf5+ {[%clk 0:00:22]} 33. Kh2 {[%clk 0:01:35]} 1-0


[Site "https://www.chess.com"]

[Event "Titled Tuesday Blitz May 23 Late 2023"]
[White "Rottenwohrer Suarez, Juan"]
[Black "Timmermans, Mark"]
[WhiteFideId "32068182"]
[BlackFideId "1026399"]
[WhiteElo "2174"]
[BlackElo "2460"]
[Result "0-1"]
[Round "10"]
[TimeControl "180+2"]
[Date "2023.05.23"]
[WhiteClock "0:00:00"]
[BlackClock "0:01:28"]

1. Nf3 {[%clk 0:03:00]}  Nf6 {[%clk 0:02:59]} 2. g3 {[%clk 0:03:01]}  e6 {[%clk 0:03:00]} 3. Bg2 {[%clk 0:02:59]}  d5 {[%clk 0:03:01]} 4. O-O {[%clk 0:03:00]}  Be7 {[%clk 0:03:02]} 5. c4 {[%clk 0:02:56]}  O-O {[%clk 0:03:03]} 6. d4 {[%clk 0:02:56]}  dxc4 {[%clk 0:03:03]} 7. Qc2 {[%clk 0:02:54]}  b5 {[%clk 0:03:03]} 8. a4 {[%clk 0:02:49]}  b4 {[%clk 0:03:03]} 9. Nbd2 {[%clk 0:02:44]}  Bb7 {[%clk 0:02:58]} 10. Nxc4 {[%clk 0:02:42]}  Be4 {[%clk 0:02:43]} 11. Qb3 {[%clk 0:02:26]}  Nc6 {[%clk 0:02:38]} 12. e3 {[%clk 0:02:07]}  Qd5 {[%clk 0:02:07]} 13. Ncd2 {[%clk 0:02:02]}  Qxb3 {[%clk 0:02:04]} 14. Nxb3 {[%clk 0:02:03]}  Rfc8 {[%clk 0:02:05]} 15. Nfd2 {[%clk 0:01:05]}  Bxg2 {[%clk 0:02:03]} 16. Kxg2 {[%clk 0:01:06]}  Nb8 {[%clk 0:01:56]} 17. Nf3 {[%clk 0:00:56]}  Nbd7 {[%clk 0:01:54]} 18. Bd2 {[%clk 0:00:55]}  a5 {[%clk 0:01:53]} 19. Rfc1 {[%clk 0:00:51]}  c5 {[%clk 0:01:54]} 20. dxc5 {[%clk 0:00:49]}  Nxc5 {[%clk 0:01:55]} 21. Nxc5 {[%clk 0:00:49]}  Bxc5 {[%clk 0:01:53]} 22. Ne5 {[%clk 0:00:46]}  Bf8 {[%clk 0:01:39]} 23. Rc6 {[%clk 0:00:38]}  Ne4 {[%clk 0:01:35]} 24. Be1 {[%clk 0:00:36]}  Nc5 {[%clk 0:01:31]} 25. Rxc8 {[%clk 0:00:13]}  Rxc8 {[%clk 0:01:32]} 26. Nc4 {[%clk 0:00:11]}  Nb3 {[%clk 0:01:28]} 27. Nb6 {[%clk 0:00:00]}  Rc6 {[%clk 0:01:28]} 0-1


[Site "https://www.chess.com"]

[Event "Titled Tuesday Blitz May 23 Late 2023"]
[White "Kovalevsky, Stanislav"]
[Black "cryptoguru02"]
[WhiteFideId "13508598"]
[WhiteElo "2174"]
[BlackElo "2555"]
[Result "0-1"]
[Round "10"]
[TimeControl "180+2"]
[Date "2023.05.23"]
[WhiteClock "0:00:03"]
[BlackClock "0:00:38"]

1. c4 {[%clk 0:02:03]}  g6 {[%clk 0:02:59]} 2. Nc3 {[%clk 0:02:03]}  Bg7 {[%clk 0:02:58]} 3. g3 {[%clk 0:02:03]}  c5 {[%clk 0:02:58]} 4. Bg2 {[%clk 0:02:04]}  Nc6 {[%clk 0:02:59]} 5. h4 {[%clk 0:02:02]}  h6 {[%clk 0:02:56]} 6. d3 {[%clk 0:02:02]}  e6 {[%clk 0:02:55]} 7. Nf3 {[%clk 0:01:57]}  Nge7 {[%clk 0:02:54]} 8. Be3 {[%clk 0:01:55]}  b6 {[%clk 0:02:53]} 9. Qc1 {[%clk 0:01:46]}  Bb7 {[%clk 0:02:51]} 10. O-O {[%clk 0:01:39]}  d5 {[%clk 0:02:51]} 11. cxd5 {[%clk 0:01:37]}  Nxd5 {[%clk 0:02:51]} 12. Nxd5 {[%clk 0:01:36]}  Qxd5 {[%clk 0:02:51]} 13. Nd4 {[%clk 0:01:17]}  Qd7 {[%clk 0:02:32]} 14. Nxc6 {[%clk 0:01:13]}  Bxc6 {[%clk 0:02:33]} 15. Bxc6 {[%clk 0:01:13]}  Qxc6 {[%clk 0:02:34]} 16. d4 {[%clk 0:01:14]}  c4 {[%clk 0:02:24]} 17. Rd1 {[%clk 0:01:09]}  Rc8 {[%clk 0:02:21]} 18. Qd2 {[%clk 0:01:03]}  Qd5 {[%clk 0:02:13]} 19. Rac1 {[%clk 0:00:59]}  g5 {[%clk 0:02:11]} 20. h5 {[%clk 0:00:52]}  O-O {[%clk 0:02:08]} 21. f3 {[%clk 0:00:36]}  Rfd8 {[%clk 0:02:06]} 22. Qb4 {[%clk 0:00:28]}  b5 {[%clk 0:01:57]} 23. Bf2 {[%clk 0:00:25]}  e5 {[%clk 0:01:54]} 24. e4 {[%clk 0:00:25]}  Qd7 {[%clk 0:01:43]} 25. dxe5 {[%clk 0:00:19]}  Qxd1+ {[%clk 0:01:29]} 26. Rxd1 {[%clk 0:00:20]}  Rxd1+ {[%clk 0:01:29]} 27. Kg2 {[%clk 0:00:21]}  Bxe5 {[%clk 0:01:30]} 28. Qxb5 {[%clk 0:00:21]}  Rd2 {[%clk 0:01:26]} 29. Qxe5 {[%clk 0:00:20]}  Rc2 {[%clk 0:01:20]} 30. Qd4 {[%clk 0:00:19]}  Rb8 {[%clk 0:01:18]} 31. Kh2 {[%clk 0:00:14]}  Rbxb2 {[%clk 0:01:16]} 32. Kh3 {[%clk 0:00:13]}  Rxf2 {[%clk 0:01:14]} 33. Kg4 {[%clk 0:00:14]}  Rbc2 {[%clk 0:01:08]} 34. Qd6 {[%clk 0:00:10]}  Rc3 {[%clk 0:01:01]} 35. Qxh6 {[%clk 0:00:09]}  Rfxf3 {[%clk 0:00:52]} 36. Qxg5+ {[%clk 0:00:10]}  Kh7 {[%clk 0:00:49]} 37. Qe7 {[%clk 0:00:07]}  Rxg3+ {[%clk 0:00:47]} 38. Kf4 {[%clk 0:00:08]}  Rcf3+ {[%clk 0:00:47]} 39. Ke5 {[%clk 0:00:08]}  c3 {[%clk 0:00:47]} 40. Qf8 {[%clk 0:00:06]}  c2 {[%clk 0:00:44]} 41. Qc8 {[%clk 0:00:06]}  Rf2 {[%clk 0:00:41]} 42. h6 {[%clk 0:00:04]}  Rg1 {[%clk 0:00:39]} 43. Qf5+ {[%clk 0:00:03]}  Rxf5+ {[%clk 0:00:39]} 44. exf5 {[%clk 0:00:03]}  c1=Q {[%clk 0:00:38]} 0-1


[Site "https://www.chess.com"]